[Event "Titled Tuesday Blitz November 01 Late 2022"]
[White "Kujawski, Adam"]
[Black "Simonovic, Miroslav"]
[WhiteFideId "1100920"]
[BlackFideId "919152"]
[WhiteElo "2091"]
[BlackElo "2043"]
[Result "0-1"]
[Round "07"]
[TimeControl "180+1"]
[Date "2022.11.02"]
[WhiteClock "0:00:05"]
[BlackClock "0:00:08"]

1. e4 {[%clk 0:03:00]}  c5 {[%clk 0:02:44]} 2. Nf3 {[%clk 0:02:58]}  Nc6 {[%clk 0:02:44]} 3. Nc3 {[%clk 0:02:56]}  e5 {[%clk 0:02:44]} 4. Bc4 {[%clk 0:02:55]}  g6 {[%clk 0:02:44]} 5. d3 {[%clk 0:02:54]}  h6 {[%clk 0:02:44]} 6. Nd2 {[%clk 0:02:53]}  Bg7 {[%clk 0:02:42]} 7. Nf1 {[%clk 0:02:53]}  Nge7 {[%clk 0:02:41]} 8. a4 {[%clk 0:02:48]}  d6 {[%clk 0:02:40]} 9. g4 {[%clk 0:02:42]}  Be6 {[%clk 0:02:26]} 10. Ne3 {[%clk 0:02:39]}  Qd7 {[%clk 0:02:25]} 11. Ncd5 {[%clk 0:02:29]}  f5 {[%clk 0:01:50]} 12. gxf5 {[%clk 0:02:27]}  gxf5 {[%clk 0:01:50]} 13. Qh5+ {[%clk 0:02:23]}  Kd8 {[%clk 0:01:40]} 14. exf5 {[%clk 0:02:13]}  Bxd5 {[%clk 0:01:15]} 15. Bxd5 {[%clk 0:02:08]}  Nxd5 {[%clk 0:01:03]} 16. Nxd5 {[%clk 0:02:07]}  Nd4 {[%clk 0:00:36]} 17. f6 {[%clk 0:01:43]}  Bf8 {[%clk 0:00:36]} 18. Kd1 {[%clk 0:01:38]}  Qe6 {[%clk 0:00:23]} 19. c4 {[%clk 0:01:19]}  Kd7 {[%clk 0:00:21]} 20. Be3 {[%clk 0:01:12]}  Re8 {[%clk 0:00:21]} 21. f7 {[%clk 0:00:45]}  Re7 {[%clk 0:00:17]} 22. Nxe7 {[%clk 0:00:43]}  Bxe7 {[%clk 0:00:17]} 23. Bxd4 {[%clk 0:00:42]}  cxd4 {[%clk 0:00:18]} 24. Rg1 {[%clk 0:00:30]}  Rf8 {[%clk 0:00:18]} 25. Qg4 {[%clk 0:00:25]}  Rxf7 {[%clk 0:00:17]} 26. Qxe6+ {[%clk 0:00:24]}  Kxe6 {[%clk 0:00:18]} 27. Ke2 {[%clk 0:00:25]}  Bg5 {[%clk 0:00:17]} 28. Rg4 {[%clk 0:00:23]}  a5 {[%clk 0:00:08]} 29. h4 {[%clk 0:00:22]}  Bf4 {[%clk 0:00:08]} 30. Rag1 {[%clk 0:00:22]}  b6 {[%clk 0:00:07]} 31. Rg6+ {[%clk 0:00:19]}  Kd7 {[%clk 0:00:05]} 32. R1g2 {[%clk 0:00:19]}  Kc6 {[%clk 0:00:05]} 33. b3 {[%clk 0:00:15]}  Kc5 {[%clk 0:00:05]} 34. Kf3 {[%clk 0:00:13]}  Rd7 {[%clk 0:00:05]} 35. Ke4 {[%clk 0:00:12]}  Kb4 {[%clk 0:00:05]} 36. Kd5 {[%clk 0:00:09]}  Kxb3 {[%clk 0:00:06]} 37. Rxd6 {[%clk 0:00:09]}  Rxd6+ {[%clk 0:00:06]} 38. Kxd6 {[%clk 0:00:09]}  Kxa4 {[%clk 0:00:06]} 39. Kc6 {[%clk 0:00:07]}  Kb4 {[%clk 0:00:05]} 40. Kxb6 {[%clk 0:00:07]}  a4 {[%clk 0:00:06]} 41. c5 {[%clk 0:00:07]}  a3 {[%clk 0:00:06]} 42. Rg1 {[%clk 0:00:07]}  a2 {[%clk 0:00:07]} 43. c6 {[%clk 0:00:07]}  Kb3 {[%clk 0:00:07]} 44. c7 {[%clk 0:00:07]}  e4 {[%clk 0:00:08]} 45. c8=Q {[%clk 0:00:06]}  Kb2 {[%clk 0:00:08]} 46. Qa8 {[%clk 0:00:04]}  a1=Q {[%clk 0:00:09]} 47. Rxa1 {[%clk 0:00:04]}  Kb3 {[%clk 0:00:10]} 48. Qa3+ {[%clk 0:00:04]}  Kc2 {[%clk 0:00:10]} 49. Qc1+ {[%clk 0:00:04]}  Bxc1 {[%clk 0:00:09]} 50. Ra3 {[%clk 0:00:05]}  Bxa3 {[%clk 0:00:08]} 0-1


[Site "https://www.chess.com"]

[Event "Titled Tuesday Blitz November 01 Late 2022"]
[White "Malka, Samuel"]
[Black "Kobla, Vishal"]
[WhiteFideId "20643675"]
[BlackFideId "2078457"]
[WhiteElo "2451"]
[BlackElo "1972"]
[Result "1-0"]
[Round "07"]
[TimeControl "180+1"]
[Date "2022.11.02"]
[WhiteClock "0:00:10"]
[BlackClock "0:00:04"]

1. Nf3 {[%clk 0:03:00]}  Nf6 {[%clk 0:02:59]} 2. c4 {[%clk 0:03:00]}  g6 {[%clk 0:02:56]} 3. Nc3 {[%clk 0:02:59]}  Bg7 {[%clk 0:02:57]} 4. d4 {[%clk 0:02:59]}  O-O {[%clk 0:02:56]} 5. e4 {[%clk 0:03:00]}  d6 {[%clk 0:02:56]} 6. Be2 {[%clk 0:03:00]}  e5 {[%clk 0:02:57]} 7. O-O {[%clk 0:03:00]}  Nc6 {[%clk 0:02:53]} 8. d5 {[%clk 0:03:00]}  Ne7 {[%clk 0:02:54]} 9. Ne1 {[%clk 0:03:00]}  Ne8 {[%clk 0:02:54]} 10. f3 {[%clk 0:02:51]}  f5 {[%clk 0:02:54]} 11. Be3 {[%clk 0:02:51]}  f4 {[%clk 0:02:46]} 12. Bf2 {[%clk 0:02:52]}  g5 {[%clk 0:02:47]} 13. a4 {[%clk 0:02:36]}  a5 {[%clk 0:02:47]} 14. c5 {[%clk 0:02:26]}  h5 {[%clk 0:02:45]} 15. cxd6 {[%clk 0:02:24]}  cxd6 {[%clk 0:02:41]} 16. Nb5 {[%clk 0:02:15]}  Ng6 {[%clk 0:02:39]} 17. Na7 {[%clk 0:02:11]}  Bd7 {[%clk 0:02:30]} 18. Qb3 {[%clk 0:02:09]}  g4 {[%clk 0:02:28]} 19. Qxb7 {[%clk 0:02:01]}  Rf7 {[%clk 0:02:25]} 20. Nc6 {[%clk 0:01:54]}  Bxc6 {[%clk 0:02:12]} 21. Qxc6 {[%clk 0:01:55]}  Rc8 {[%clk 0:02:10]} 22. Qb6 {[%clk 0:01:48]}  Qg5 {[%clk 0:02:09]} 23. Kh1 {[%clk 0:01:37]}  Nh4 {[%clk 0:01:59]} 24. Bxh4 {[%clk 0:01:27]}  Qxh4 {[%clk 0:02:00]} 25. Qxa5 {[%clk 0:01:10]}  Bf6 {[%clk 0:01:44]} 26. Qd2 {[%clk 0:00:56]}  Rg7 {[%clk 0:01:40]} 27. Nd3 {[%clk 0:00:52]}  Bd8 {[%clk 0:01:19]} 28. Rfc1 {[%clk 0:00:49]}  Rb8 {[%clk 0:01:15]} 29. b4 {[%clk 0:00:46]}  Nf6 {[%clk 0:01:15]} 30. a5 {[%clk 0:00:42]}  Nh7 {[%clk 0:01:08]} 31. Qe1 {[%clk 0:00:38]}  g3 {[%clk 0:01:08]} 32. h3 {[%clk 0:00:38]}  Ng5 {[%clk 0:01:08]} 33. Bf1 {[%clk 0:00:37]}  Rbb7 {[%clk 0:00:29]} 34. Qe2 {[%clk 0:00:36]}  Rg6 {[%clk 0:00:25]} 35. Ne1 {[%clk 0:00:36]}  Rbg7 {[%clk 0:00:24]} 36. Rc8 {[%clk 0:00:36]}  Nxh3 {[%clk 0:00:21]} 37. gxh3 {[%clk 0:00:35]}  g2+ {[%clk 0:00:21]} 38. Bxg2 {[%clk 0:00:34]}  Rxg2 {[%clk 0:00:21]} 39. Nxg2 {[%clk 0:00:34]}  Qxh3+ {[%clk 0:00:22]} 40. Kg1 {[%clk 0:00:34]}  Qxc8 {[%clk 0:00:22]} 41. Kf2 {[%clk 0:00:20]}  h4 {[%clk 0:00:21]} 42. Rh1 {[%clk 0:00:19]}  h3 {[%clk 0:00:22]} 43. Ne1 {[%clk 0:00:19]}  Rg3 {[%clk 0:00:16]} 44. Rg1 {[%clk 0:00:19]}  Bh4 {[%clk 0:00:16]} 45. Rxg3+ {[%clk 0:00:18]}  fxg3+ {[%clk 0:00:16]} 46. Kg1 {[%clk 0:00:19]}  g2 {[%clk 0:00:16]} 47. f4 {[%clk 0:00:18]}  Qf5 {[%clk 0:00:11]} 48. fxe5 {[%clk 0:00:15]}  Qg5 {[%clk 0:00:04]} 49. Nf3 {[%clk 0:00:13]}  Qc1+ {[%clk 0:00:04]} 50. Kh2 {[%clk 0:00:14]}  Bg5 {[%clk 0:00:03]} 51. Kxh3 {[%clk 0:00:05]}  g1=Q {[%clk 0:00:03]} 52. Nxg1 {[%clk 0:00:05]}  Qxg1 {[%clk 0:00:04]} 53. exd6 {[%clk 0:00:05]}  Qh1+ {[%clk 0:00:04]} 54. Kg4 {[%clk 0:00:04]}  Qg1+ {[%clk 0:00:04]} 55. Kf5 {[%clk 0:00:05]}  Bd8 {[%clk 0:00:03]} 56. Qg4+ {[%clk 0:00:05]}  Qxg4+ {[%clk 0:00:03]} 57. Kxg4 {[%clk 0:00:06]}  Kf7 {[%clk 0:00:04]} 58. e5 {[%clk 0:00:06]}  Kg6 {[%clk 0:00:04]} 59. Kf4 {[%clk 0:00:07]}  Kf7 {[%clk 0:00:04]} 60. Ke4 {[%clk 0:00:07]}  Ke8 {[%clk 0:00:05]} 61. Kd4 {[%clk 0:00:08]}  Kd7 {[%clk 0:00:06]} 62. Kc5 {[%clk 0:00:09]}  Bh4 {[%clk 0:00:05]} 63. e6+ {[%clk 0:00:09]}  Kc8 {[%clk 0:00:06]} 64. Kc6 {[%clk 0:00:09]}  Bg3 {[%clk 0:00:05]} 65. b5 {[%clk 0:00:09]}  Bf4 {[%clk 0:00:05]} 66. a6 {[%clk 0:00:10]}  Be3 {[%clk 0:00:05]} 67. b6 {[%clk 0:00:10]}  Bd4 {[%clk 0:00:04]} 68. a7 {[%clk 0:00:10]} 1-0


[Site "https://www.chess.com"]

[Event "Titled Tuesday Blitz November 01 Late 2022"]
[White "Matinian, Nikita"]
[Black "Besedes, Danilo"]
[WhiteFideId "24129100"]
[BlackFideId "946796"]
[WhiteElo "2727"]
[BlackElo "2581"]
[Result "0-1"]
[Round "07"]
[TimeControl "180+1"]
[Date "2022.11.02"]
[WhiteClock "0:00:02"]
[BlackClock "0:00:14"]

1. e4 {[%clk 0:03:00]}  d6 {[%clk 0:02:48]} 2. d4 {[%clk 0:03:00]}  e5 {[%clk 0:02:48]} 3. Nf3 {[%clk 0:02:59]}  exd4 {[%clk 0:02:47]} 4. Nxd4 {[%clk 0:03:00]}  Nf6 {[%clk 0:02:47]} 5. Nc3 {[%clk 0:03:01]}  Be7 {[%clk 0:02:47]} 6. Bf4 {[%clk 0:03:01]}  O-O {[%clk 0:02:46]} 7. Qd2 {[%clk 0:03:02]}  Nc6 {[%clk 0:02:42]} 8. Nxc6 {[%clk 0:02:59]}  bxc6 {[%clk 0:02:39]} 9. Bc4 {[%clk 0:02:56]}  Be6 {[%clk 0:02:22]} 10. Bxe6 {[%clk 0:02:51]}  fxe6 {[%clk 0:02:21]} 11. O-O-O {[%clk 0:02:43]}  e5 {[%clk 0:02:11]} 12. Bg5 {[%clk 0:02:40]}  Rb8 {[%clk 0:02:06]} 13. f3 {[%clk 0:02:38]}  a5 {[%clk 0:02:04]} 14. Bxf6 {[%clk 0:02:34]}  Bxf6 {[%clk 0:02:04]} 15. Qd3 {[%clk 0:02:35]}  Qc8 {[%clk 0:01:56]} 16. Qc4+ {[%clk 0:02:34]}  Kh8 {[%clk 0:01:55]} 17. Qxc6 {[%clk 0:02:35]}  Rb6 {[%clk 0:01:34]} 18. Qc4 {[%clk 0:02:32]}  Rb4 {[%clk 0:01:33]} 19. Qd3 {[%clk 0:02:26]}  Qb8 {[%clk 0:01:27]} 20. b3 {[%clk 0:02:26]}  a4 {[%clk 0:01:24]} 21. Nd5 {[%clk 0:02:25]}  Bg5+ {[%clk 0:01:00]} 22. Kb1 {[%clk 0:02:24]}  Rb7 {[%clk 0:00:59]} 23. h4 {[%clk 0:02:24]}  Bd8 {[%clk 0:00:53]} 24. h5 {[%clk 0:02:24]}  Bg5 {[%clk 0:00:50]} 25. h6 {[%clk 0:01:58]}  Bxh6 {[%clk 0:00:47]} 26. Ne7 {[%clk 0:01:58]}  Qe8 {[%clk 0:00:32]} 27. Nf5 {[%clk 0:01:57]}  Bg5 {[%clk 0:00:31]} 28. g3 {[%clk 0:01:45]}  g6 {[%clk 0:00:30]} 29. Nh4 {[%clk 0:01:36]}  Qf7 {[%clk 0:00:30]} 30. f4 {[%clk 0:01:26]}  exf4 {[%clk 0:00:30]} 31. gxf4 {[%clk 0:01:27]}  axb3 {[%clk 0:00:26]} 32. axb3 {[%clk 0:01:22]}  Bxf4 {[%clk 0:00:26]} 33. Rdf1 {[%clk 0:01:21]}  g5 {[%clk 0:00:25]} 34. Qd4+ {[%clk 0:01:14]}  Kg8 {[%clk 0:00:22]} 35. Nf5 {[%clk 0:01:13]}  Rxb3+ {[%clk 0:00:20]} 36. cxb3 {[%clk 0:00:41]}  Qxb3+ {[%clk 0:00:21]} 37. Qb2 {[%clk 0:00:38]}  Qd3+ {[%clk 0:00:21]} 38. Ka1 {[%clk 0:00:32]}  Ra8+ {[%clk 0:00:21]} 39. Qa2+ {[%clk 0:00:32]}  Rxa2+ {[%clk 0:00:19]} 40. Kxa2 {[%clk 0:00:33]}  Qc2+ {[%clk 0:00:19]} 41. Ka3 {[%clk 0:00:32]}  Qc3+ {[%clk 0:00:19]} 42. Ka4 {[%clk 0:00:30]}  Qc4+ {[%clk 0:00:19]} 43. Ka3 {[%clk 0:00:30]}  Qd3+ {[%clk 0:00:18]} 44. Ka2 {[%clk 0:00:29]}  Qxe4 {[%clk 0:00:17]} 45. Nh6+ {[%clk 0:00:27]}  Kf8 {[%clk 0:00:17]} 46. Re1 {[%clk 0:00:25]}  Qa4+ {[%clk 0:00:17]} 47. Kb2 {[%clk 0:00:24]}  Be5+ {[%clk 0:00:17]} 48. Kc1 {[%clk 0:00:25]}  Qa1+ {[%clk 0:00:16]} 49. Kc2 {[%clk 0:00:23]}  Qc3+ {[%clk 0:00:17]} 50. Kd1 {[%clk 0:00:23]}  Qd3+ {[%clk 0:00:17]} 51. Kc1 {[%clk 0:00:23]}  Bf4+ {[%clk 0:00:15]} 52. Kb2 {[%clk 0:00:23]}  c5 {[%clk 0:00:15]} 53. Ng4 {[%clk 0:00:17]}  c4 {[%clk 0:00:15]} 54. Nf6 {[%clk 0:00:02]}  Qb3+ {[%clk 0:00:14]} 0-1


[Site "https://www.chess.com"]

[Event "Titled Tuesday Blitz November 01 Late 2022"]
[White "Melikhov, Evgeny V."]
[Black "Luxama, Jacques Muller"]
[WhiteFideId "4122046"]
[BlackFideId "11900113"]
[WhiteElo "2169"]
[BlackElo "1931"]
[Result "0-1"]
[Round "07"]
[TimeControl "180+1"]
[Date "2022.11.02"]
[WhiteClock "0:00:03"]
[BlackClock "0:00:34"]

1. d4 {[%clk 0:02:57]}  Nf6 {[%clk 0:02:58]} 2. c4 {[%clk 0:02:56]}  g6 {[%clk 0:02:58]} 3. Nc3 {[%clk 0:02:56]}  Bg7 {[%clk 0:02:57]} 4. e4 {[%clk 0:02:55]}  O-O {[%clk 0:02:58]} 5. Be3 {[%clk 0:02:55]}  d6 {[%clk 0:02:58]} 6. f3 {[%clk 0:02:55]}  e5 {[%clk 0:02:54]} 7. d5 {[%clk 0:02:55]}  c6 {[%clk 0:02:49]} 8. Bd3 {[%clk 0:02:54]}  cxd5 {[%clk 0:02:48]} 9. cxd5 {[%clk 0:02:55]}  Na6 {[%clk 0:02:43]} 10. Nge2 {[%clk 0:02:53]}  Bd7 {[%clk 0:02:35]} 11. O-O {[%clk 0:02:52]}  Qa5 {[%clk 0:02:32]} 12. a3 {[%clk 0:02:48]}  Rfc8 {[%clk 0:02:30]} 13. b4 {[%clk 0:02:47]}  Qd8 {[%clk 0:02:29]} 14. Rc1 {[%clk 0:02:39]}  Nc7 {[%clk 0:02:27]} 15. a4 {[%clk 0:02:27]}  a6 {[%clk 0:02:21]} 16. a5 {[%clk 0:02:17]}  Qe8 {[%clk 0:02:18]} 17. Qb3 {[%clk 0:01:57]}  h5 {[%clk 0:02:00]} 18. Rc2 {[%clk 0:01:22]}  Nb5 {[%clk 0:01:55]} 19. Rfc1 {[%clk 0:01:15]}  Nxc3 {[%clk 0:01:53]} 20. Rxc3 {[%clk 0:01:15]}  Rxc3 {[%clk 0:01:47]} 21. Rxc3 {[%clk 0:01:14]}  Rc8 {[%clk 0:01:46]} 22. Rxc8 {[%clk 0:01:11]}  Qxc8 {[%clk 0:01:45]} 23. Qc2 {[%clk 0:01:04]}  Kh7 {[%clk 0:01:27]} 24. Qxc8 {[%clk 0:01:03]}  Bxc8 {[%clk 0:01:28]} 25. b5 {[%clk 0:01:02]}  Bh6 {[%clk 0:01:23]} 26. Kf2 {[%clk 0:00:50]}  Bxe3+ {[%clk 0:01:21]} 27. Kxe3 {[%clk 0:00:50]}  Nd7 {[%clk 0:01:22]} 28. bxa6 {[%clk 0:00:47]}  bxa6 {[%clk 0:01:22]} 29. Nc3 {[%clk 0:00:35]}  Nc5 {[%clk 0:01:16]} 30. Bc2 {[%clk 0:00:33]}  Nb7 {[%clk 0:01:11]} 31. Ba4 {[%clk 0:00:22]}  Nxa5 {[%clk 0:01:09]} 32. Bc6 {[%clk 0:00:22]}  Kg7 {[%clk 0:01:06]} 33. Na4 {[%clk 0:00:20]}  Bb7 {[%clk 0:01:03]} 34. Bxb7 {[%clk 0:00:14]}  Nxb7 {[%clk 0:01:03]} 35. Kd3 {[%clk 0:00:14]}  Kf8 {[%clk 0:01:03]} 36. Kc4 {[%clk 0:00:14]}  Ke7 {[%clk 0:01:03]} 37. h4 {[%clk 0:00:13]}  Kd8 {[%clk 0:01:02]} 38. g4 {[%clk 0:00:12]}  Kc7 {[%clk 0:01:01]} 39. Nc3 {[%clk 0:00:10]}  Nc5 {[%clk 0:00:58]} 40. Ne2 {[%clk 0:00:10]}  Nd7 {[%clk 0:00:53]} 41. Ng3 {[%clk 0:00:09]}  Nf6 {[%clk 0:00:52]} 42. gxh5 {[%clk 0:00:08]}  Nxh5 {[%clk 0:00:50]} 43. Ne2 {[%clk 0:00:07]}  Nf4 {[%clk 0:00:48]} 44. Nc3 {[%clk 0:00:04]}  Ng2 {[%clk 0:00:43]} 45. Kb4 {[%clk 0:00:04]}  Nxh4 {[%clk 0:00:42]} 46. Ka5 {[%clk 0:00:04]}  Kb7 {[%clk 0:00:39]} 47. f4 {[%clk 0:00:03]}  exf4 {[%clk 0:00:39]} 48. e5 {[%clk 0:00:04]}  dxe5 {[%clk 0:00:39]} 49. d6 {[%clk 0:00:04]}  Kc6 {[%clk 0:00:39]} 50. Kxa6 {[%clk 0:00:03]}  Kxd6 {[%clk 0:00:39]} 51. Kb5 {[%clk 0:00:04]}  f5 {[%clk 0:00:39]} 52. Kc4 {[%clk 0:00:04]}  e4 {[%clk 0:00:38]} 53. Kd4 {[%clk 0:00:04]}  Nf3+ {[%clk 0:00:37]} 54. Kc4 {[%clk 0:00:04]}  Ke5 {[%clk 0:00:37]} 55. Ne2 {[%clk 0:00:04]}  Ne1 {[%clk 0:00:35]} 56. Kc3 {[%clk 0:00:04]}  e3 {[%clk 0:00:34]} 57. Ng1 {[%clk 0:00:03]}  f3 {[%clk 0:00:34]} 0-1


[Site "https://www.chess.com"]

[Event "Titled Tuesday Blitz November 01 Late 2022"]
[White "Miszler, Levente"]
[Black "Rose, Felix"]
[WhiteFideId "763276"]
[BlackFideId "5105722"]
[WhiteElo "2176"]
[BlackElo "2039"]
[Result "1-0"]
[Round "07"]
[TimeControl "180+1"]
[Date "2022.11.02"]
[WhiteClock "0:00:12"]
[BlackClock "0:00:07"]

1. d4 {[%clk 0:03:00]}  d5 {[%clk 0:02:58]} 2. Nf3 {[%clk 0:03:00]}  Nf6 {[%clk 0:02:59]} 3. c4 {[%clk 0:02:56]}  e6 {[%clk 0:02:59]} 4. Nc3 {[%clk 0:02:54]}  Be7 {[%clk 0:02:59]} 5. Bf4 {[%clk 0:02:45]}  O-O {[%clk 0:02:58]} 6. e3 {[%clk 0:02:45]}  b6 {[%clk 0:02:59]} 7. h3 {[%clk 0:02:43]}  c5 {[%clk 0:02:52]} 8. cxd5 {[%clk 0:02:42]}  Nxd5 {[%clk 0:02:52]} 9. Nxd5 {[%clk 0:02:40]}  Qxd5 {[%clk 0:02:51]} 10. Be2 {[%clk 0:02:38]}  cxd4 {[%clk 0:02:50]} 11. Qxd4 {[%clk 0:02:36]}  Qa5+ {[%clk 0:02:36]} 12. Kf1 {[%clk 0:02:33]}  Ba6 {[%clk 0:02:30]} 13. Ne5 {[%clk 0:02:19]}  Rd8 {[%clk 0:02:23]} 14. Qe4 {[%clk 0:02:11]}  Bxe2+ {[%clk 0:01:55]} 15. Kxe2 {[%clk 0:02:12]}  Na6 {[%clk 0:01:41]} 16. Rhd1 {[%clk 0:02:10]}  Qb5+ {[%clk 0:01:36]} 17. Kf3 {[%clk 0:02:09]}  Nc5 {[%clk 0:01:28]} 18. Qc2 {[%clk 0:02:01]}  f6 {[%clk 0:01:16]} 19. a4 {[%clk 0:01:44]}  Qa6 {[%clk 0:00:54]} 20. Nc4 {[%clk 0:01:30]}  e5 {[%clk 0:00:48]} 21. Bg3 {[%clk 0:01:24]}  e4+ {[%clk 0:00:42]} 22. Kf4 {[%clk 0:01:22]}  g5+ {[%clk 0:00:28]} 23. Kg4 {[%clk 0:01:14]}  Qc8+ {[%clk 0:00:27]} 24. Kh5 {[%clk 0:01:08]}  Qf5 {[%clk 0:00:26]} 25. Bc7 {[%clk 0:00:50]}  g4+ {[%clk 0:00:16]} 26. Kh4 {[%clk 0:00:50]}  Qg5+ {[%clk 0:00:15]} 27. Kg3 {[%clk 0:00:50]}  gxh3+ {[%clk 0:00:12]} 28. Kxh3 {[%clk 0:00:47]}  Qh5+ {[%clk 0:00:12]} 29. Kg3 {[%clk 0:00:47]}  Rxd1 {[%clk 0:00:06]} 30. Qxd1 {[%clk 0:00:45]}  Qg5+ {[%clk 0:00:06]} 31. Qg4 {[%clk 0:00:44]}  Qxg4+ {[%clk 0:00:04]} 32. Kxg4 {[%clk 0:00:45]}  Ne6 {[%clk 0:00:05]} 33. Bg3 {[%clk 0:00:39]}  Rc8 {[%clk 0:00:05]} 34. b3 {[%clk 0:00:37]}  Kf7 {[%clk 0:00:06]} 35. Rd1 {[%clk 0:00:37]}  Kg6 {[%clk 0:00:06]} 36. Rd7 {[%clk 0:00:36]}  f5+ {[%clk 0:00:05]} 37. Kh3 {[%clk 0:00:35]}  Ng5+ {[%clk 0:00:06]} 38. Kh2 {[%clk 0:00:34]}  Bc5 {[%clk 0:00:06]} 39. Ne5+ {[%clk 0:00:32]}  Kh6 {[%clk 0:00:05]} 40. Bf4 {[%clk 0:00:29]}  Rg8 {[%clk 0:00:04]} 41. Nf7+ {[%clk 0:00:26]}  Kh5 {[%clk 0:00:04]} 42. Nxg5 {[%clk 0:00:26]}  Rxg5 {[%clk 0:00:04]} 43. Bxg5 {[%clk 0:00:25]}  Kxg5 {[%clk 0:00:04]} 44. Rxa7 {[%clk 0:00:21]}  h5 {[%clk 0:00:05]} 45. Rc7 {[%clk 0:00:19]}  f4 {[%clk 0:00:05]} 46. exf4+ {[%clk 0:00:18]}  Kxf4 {[%clk 0:00:05]} 47. a5 {[%clk 0:00:17]}  Bxf2 {[%clk 0:00:05]} 48. a6 {[%clk 0:00:18]}  e3 {[%clk 0:00:04]} 49. a7 {[%clk 0:00:16]}  e2 {[%clk 0:00:04]} 50. Rf7+ {[%clk 0:00:16]}  Ke3 {[%clk 0:00:04]} 51. Re7+ {[%clk 0:00:16]}  Kd2 {[%clk 0:00:04]} 52. a8=Q {[%clk 0:00:15]}  Be3 {[%clk 0:00:04]} 53. Qa2+ {[%clk 0:00:14]}  Kd1 {[%clk 0:00:04]} 54. Rxe3 {[%clk 0:00:14]}  e1=Q {[%clk 0:00:04]} 55. Rxe1+ {[%clk 0:00:15]}  Kxe1 {[%clk 0:00:05]} 56. Qc2 {[%clk 0:00:13]}  b5 {[%clk 0:00:05]} 57. Kg3 {[%clk 0:00:13]}  b4 {[%clk 0:00:06]} 58. Kf3 {[%clk 0:00:12]}  h4 {[%clk 0:00:07]} 59. Qe2# {[%clk 0:00:12]} 1-0


[Site "https://www.chess.com"]

[Event "Titled Tuesday Blitz November 01 Late 2022"]
[White "Ozdemir, Serhan Berat"]
[Black "Rangel, Daniel"]
[WhiteFideId "6374611"]
[BlackFideId "2124475"]
[WhiteElo "2016"]
[BlackElo "2225"]
[Result "0-1"]
[Round "07"]
[TimeControl "180+1"]
[Date "2022.11.02"]
[WhiteClock "0:00:05"]
[BlackClock "0:00:50"]

1. e4 {[%clk 0:02:56]}  c5 {[%clk 0:02:59]} 2. Nf3 {[%clk 0:02:52]}  g6 {[%clk 0:02:58]} 3. d4 {[%clk 0:02:52]}  cxd4 {[%clk 0:02:58]} 4. Qxd4 {[%clk 0:02:52]}  Nf6 {[%clk 0:02:58]} 5. e5 {[%clk 0:02:52]}  Nc6 {[%clk 0:02:58]} 6. Qa4 {[%clk 0:02:53]}  Nd5 {[%clk 0:02:59]} 7. Qb3 {[%clk 0:02:54]}  Nc7 {[%clk 0:02:55]} 8. Nc3 {[%clk 0:02:52]}  Bg7 {[%clk 0:02:55]} 9. Bf4 {[%clk 0:02:33]}  Ne6 {[%clk 0:02:48]} 10. Bg3 {[%clk 0:02:33]}  Ned4 {[%clk 0:02:43]} 11. Nxd4 {[%clk 0:02:31]}  Nxd4 {[%clk 0:02:43]} 12. Qa4 {[%clk 0:02:32]}  Nf5 {[%clk 0:02:41]} 13. Bf4 {[%clk 0:02:26]}  Qb6 {[%clk 0:02:31]} 14. O-O-O {[%clk 0:02:02]}  Qxf2 {[%clk 0:02:09]} 15. Bd3 {[%clk 0:01:58]}  Qxf4+ {[%clk 0:01:51]} 16. Qxf4 {[%clk 0:01:54]}  Bh6 {[%clk 0:01:51]} 17. Qxh6 {[%clk 0:01:54]}  Nxh6 {[%clk 0:01:52]} 18. Nd5 {[%clk 0:01:53]}  O-O {[%clk 0:01:42]} 19. Nxe7+ {[%clk 0:01:53]}  Kg7 {[%clk 0:01:43]} 20. Nd5 {[%clk 0:01:49]}  b6 {[%clk 0:01:38]} 21. Nf6 {[%clk 0:01:39]}  Bb7 {[%clk 0:01:35]} 22. h4 {[%clk 0:01:27]}  d6 {[%clk 0:01:25]} 23. Rhe1 {[%clk 0:00:31]}  dxe5 {[%clk 0:01:20]} 24. Nd7 {[%clk 0:00:31]}  Rfe8 {[%clk 0:01:19]} 25. Nxe5 {[%clk 0:00:30]}  Bxg2 {[%clk 0:01:16]} 26. Rd2 {[%clk 0:00:31]}  Bh3 {[%clk 0:01:06]} 27. Bb5 {[%clk 0:00:26]}  Red8 {[%clk 0:01:00]} 28. Rf2 {[%clk 0:00:22]}  Be6 {[%clk 0:00:57]} 29. Ba6 {[%clk 0:00:16]}  Ng4 {[%clk 0:00:49]} 30. Nxg4 {[%clk 0:00:08]}  Bxg4 {[%clk 0:00:50]} 31. Re7 {[%clk 0:00:05]}  Rd1# {[%clk 0:00:50]} 0-1


[Site "https://www.chess.com"]

[Event "Titled Tuesday Blitz November 01 Late 2022"]
[White "Pace, Christopher"]
[Black "Karas, Marek"]
[WhiteFideId "2610167"]
[BlackFideId "14928558"]
[WhiteElo "2294"]
[BlackElo "2220"]
[Result "1-0"]
[Round "07"]
[TimeControl "180+1"]
[Date "2022.11.02"]
[WhiteClock "0:01:48"]
[BlackClock "0:00:06"]

1. b3 {[%clk 0:02:58]}  a6 {[%clk 0:03:00]} 2. Bb2 {[%clk 0:02:58]}  h6 {[%clk 0:03:01]} 3. Nf3 {[%clk 0:02:57]}  b6 {[%clk 0:03:01]} 4. g3 {[%clk 0:02:57]}  Nf6 {[%clk 0:03:01]} 5. Bg2 {[%clk 0:02:57]}  Bb7 {[%clk 0:03:01]} 6. O-O {[%clk 0:02:58]}  g6 {[%clk 0:03:01]} 7. d3 {[%clk 0:02:59]}  Bg7 {[%clk 0:03:01]} 8. e4 {[%clk 0:02:59]}  d6 {[%clk 0:03:01]} 9. Re1 {[%clk 0:02:56]}  e5 {[%clk 0:03:01]} 10. Nbd2 {[%clk 0:02:55]}  O-O {[%clk 0:03:00]} 11. d4 {[%clk 0:02:49]}  exd4 {[%clk 0:02:57]} 12. Nxd4 {[%clk 0:02:49]}  Ra7 {[%clk 0:02:45]} 13. a4 {[%clk 0:02:49]}  Nbd7 {[%clk 0:02:44]} 14. a5 {[%clk 0:02:49]}  b5 {[%clk 0:02:42]} 15. N4f3 {[%clk 0:02:44]}  Qa8 {[%clk 0:02:30]} 16. h3 {[%clk 0:02:22]}  Re8 {[%clk 0:02:18]} 17. Nh2 {[%clk 0:02:15]}  Nc5 {[%clk 0:02:01]} 18. Bd4 {[%clk 0:02:15]}  Nfxe4 {[%clk 0:01:47]} 19. Bxg7 {[%clk 0:02:15]}  Kxg7 {[%clk 0:01:46]} 20. Nxe4 {[%clk 0:02:14]}  Bxe4 {[%clk 0:01:40]} 21. Qd4+ {[%clk 0:02:04]}  Kg8 {[%clk 0:01:37]} 22. Ng4 {[%clk 0:01:57]}  Re6 {[%clk 0:01:06]} 23. Bxe4 {[%clk 0:01:52]}  Nxe4 {[%clk 0:00:51]} 24. Rxe4 {[%clk 0:01:52]}  Qxe4 {[%clk 0:00:38]} 25. Qxe4 {[%clk 0:01:52]}  Rxe4 {[%clk 0:00:37]} 26. Nf6+ {[%clk 0:01:52]}  Kg7 {[%clk 0:00:25]} 27. Nxe4 {[%clk 0:01:53]}  Ra8 {[%clk 0:00:20]} 28. c4 {[%clk 0:01:50]}  bxc4 {[%clk 0:00:18]} 29. bxc4 {[%clk 0:01:51]}  Rb8 {[%clk 0:00:18]} 30. Ra4 {[%clk 0:01:49]}  f5 {[%clk 0:00:13]} 31. Nc3 {[%clk 0:01:49]}  c6 {[%clk 0:00:10]} 32. Na2 {[%clk 0:01:50]}  c5 {[%clk 0:00:10]} 33. Nc3 {[%clk 0:01:50]}  Rb2 {[%clk 0:00:07]} 34. Nd5 {[%clk 0:01:48]}  g5 {[%clk 0:00:06]} 35. Nc7 {[%clk 0:01:48]} 1-0


[Site "https://www.chess.com"]